fUSD/lending_fUSD_20241017
["ID","MTS","AMOUNT","RATE_DAILY","PERIOD"]
[340393641,1729173855429,500.0,0.00027,60]
[340393642,1729173855490,500.0,0.00027,60]
[340393643,1729173855612,962.15,0.00027,60]
[340393644,1729173855743,500.0,0.00027,60]
[340393645,1729173855793,500.0,0.00027,60]
[340393646,1729173855888,500.0,0.00027,60]
[340393647,1729173855971,962.15,0.00027,60]
[340393648,1729173856064,500.0,0.00027,60]
[340393649,1729173856124,2451.81,0.00027,60]
[340393650,1729173856162,500.0,0.00027,60]
[340393651,1729173856207,500.0,0.00027,60]
[340393652,1729173856318,962.15,0.00027,60]
[340393653,1729173856373,500.0,0.00027,60]
[340393654,1729173856432,2451.81,0.00027,60]
[340393655,1729173856473,500.0,0.00027,60]
[340393656,1729173856515,500.0,0.00027,60]
[340393657,1729173856639,962.15,0.00027,60]
[340393658,1729173856686,500.0,0.00027,60]
[340393659,1729173856741,2451.81,0.00027,60]
[340393660,1729173856780,523.21630232,0.00027,60]
[340393661,1729173856849,474.63704205,0.00027,60]
[340393662,1729173856962,962.15,0.00027,60]
[340393663,1729173857048,500.0,0.00027,60]
[340393664,1729173857149,2451.81,0.00027,60]
[340393665,1729173857249,216.5738092,0.00027,60]
[340393666,1729173857295,962.15,0.00027,60]
[340393667,1729173857339,500.0,0.00027,60]
[340393668,1729173857378,2451.81,0.00027,60]
[340393669,1729173857627,962.15,0.00027,60]
[340393670,1729173857667,500.0,0.00027,60]
[340393671,1729173857709,2451.81,0.00027,60]
[340393672,1729173857932,842.14,0.00027,60]
[340393673,1729173857987,962.15,0.00027,60]
[340393674,1729173858029,2451.81,0.00027,60]
[340393675,1729173858289,962.15,0.00027,60]
[340393676,1729173858330,354.9159677,0.00027,60]
[340393677,1729173858371,842.14,0.00027,60]
[340393678,1729173858412,2451.81,0.00027,60]
[340393679,1729173858584,962.15,0.00027,60]
[340393680,1729173858623,842.14,0.00027,60]
[340393681,1729173858664,2451.81,0.00027,60]
[340393682,1729173858891,962.15,0.00027,60]
[340393683,1729173858982,2451.81,0.00027,60]
[340393684,1729173859083,842.14,0.00027,60]
[340393685,1729173859572,962.15,0.00027,60]
[340393686,1729173859613,2451.81,0.00027,60]
[340393687,1729173859658,500.0,0.00027,60]
[340393688,1729173859699,500.0,0.00027,60]
[340393689,1729173859739,842.14,0.00027,60]
[340393690,1729173859778,962.15,0.00027,60]
[340393691,1729173859818,500.0,0.00027,60]
[340393692,1729173859859,2451.81,0.00027,60]
[340393693,1729173859903,500.0,0.00027,60]
[340393694,1729173859946,842.14,0.00027,60]
[340393695,1729173859999,962.15,0.00027,60]
[340393696,1729173860039,500.0,0.00027,60]
[340393697,1729173860083,500.0,0.00027,60]
[340393698,1729173860122,2452.039551,0.00027,60]
[340393699,1729173860162,842.14,0.00027,60]
[340393700,1729173860200,962.16331083,0.00027,60]
[340393701,1729173860282,500.0,0.00027,60]
[340393702,1729173860321,500.0,0.00027,60]
[340393703,1729173860375,842.14,0.00027,60]
[340393704,1729173860453,500.0,0.00027,60]
[340393705,1729173860659,500.0,0.00027,60]
[340393706,1729173860703,211.1615083,0.00027,60]
[340393707,1729173860871,842.14,0.00027,60]
[340393708,1729173860914,500.0,0.00027,60]
[340393709,1729173860955,500.0,0.00027,60]
[340393710,1729173860998,500.0,0.00027,60]
[340393711,1729173861083,3221.99,0.00027,60]
[340393712,1729173861156,500.0,0.00027,60]
[340393713,1729173861197,500.0,0.00027,60]
[340393714,1729173861235,842.14,0.00027,60]
[340393715,1729173861276,500.0,0.00027,60]
[340393716,1729173861314,500.0,0.00027,60]
[340393717,1729173861404,3221.99,0.00027,60]
[340393718,1729173861516,500.0,0.00027,60]
[340393719,1729173861557,500.0,0.00027,60]
[340393720,1729173861597,842.14,0.00027,60]
[340393721,1729173861637,500.0,0.00027,60]
[340393722,1729173861725,3221.99,0.00027,60]
[340393723,1729173861836,842.14,0.00027,60]
[340393724,1729173861877,500.0,0.00027,60]
[340393725,1729173861919,500.0,0.00027,60]
[340393726,1729173861964,500.0,0.00027,60]
[340393727,1729173862036,3221.99,0.00027,60]
[340393728,1729173862159,500.0,0.00027,60]
[340393729,1729173862198,500.0,0.00027,60]
[340393730,1729173862237,842.14,0.00027,60]
[340393731,1729173862277,284.07393179,0.00027,60]
[340393732,1729173862368,3221.99,0.00027,60]
[340393733,1729173862456,842.14,0.00027,60]
[340393734,1729173862495,391.41811094,0.00027,60]
[340393735,1729173862735,500.0,0.00027,60]
[340393736,1729173862774,500.0,0.00027,60]
[340393737,1729173862851,3221.99,0.00027,60]
[340393738,1729173862893,842.14,0.00027,60]
[340393739,1729173862937,500.0,0.00027,60]
[340393740,1729173862975,500.0,0.00027,60]
[340393741,1729173863017,3221.99,0.00027,60]
[340393742,1729173863080,842.14,0.00027,60]
[340393743,1729173863120,571.90081304,0.00027,60]
[340393744,1729173863208,500.0,0.00027,60]
[340393745,1729173863269,500.0,0.00027,60]
[340393746,1729173863310,3221.99,0.00027,60]
[340393747,1729173863438,842.14,0.00027,60]
[340393748,1729173863524,554.02473924,0.00027,60]
[340393749,1729173863588,500.0,0.00027,60]
[340393750,1729173863765,842.14,0.00027,60]
[340393751,1729173863907,500.0,0.00027,60]
[340393752,1729173863957,3221.99,0.00027,60]
[340393753,1729173864094,842.14,0.00027,60]
[340393754,1729173864197,500.0,0.00027,60]
[340393755,1729173864261,3221.99,0.00027,60]
[340393756,1729173864566,370.51575566,0.00027,60]
[340393757,1729173864607,3221.99,0.00027,60]
[340393758,1729173864758,842.14,0.00027,60]
[340393759,1729173864800,500.0,0.00027,60]
[340393760,1729173864854,3221.99,0.00027,60]
[340393761,1729173865084,842.14,0.00027,60]
[340393762,1729173865134,500.0,0.00027,60]
[340393763,1729173865195,3221.99,0.00027,60]
[340393764,1729173865402,500.0,0.00027,60]
[340393765,1729173865474,3221.99,0.00027,60]
[340393766,1729173865699,500.0,0.00027,60]
[340393767,1729173865774,3221.99,0.00027,60]
[340393768,1729173865896,842.14,0.00027,60]
[340393769,1729173865995,500.0,0.00027,60]
[340393770,1729173866073,3221.99,0.00027,60]
[340393771,1729173866306,500.0,0.00027,60]
[340393772,1729173866395,3221.99,0.00027,60]
[340393773,1729173866536,842.14,0.00027,60]
[340393774,1729173866684,3221.99,0.00027,60]
[340393775,1729173866725,500.0,0.00027,60]
[340393776,1729173866857,842.37374046,0.00027,60]
[340393777,1729173866984,3221.99,0.00027,60]
[340393778,1729173867028,567.11725016,0.00027,60]
[340393779,1729173867288,3221.99,0.00027,60]
[340393780,1729173867613,3221.99,0.00027,60]
[340393781,1729173867655,500.0,0.00027,60]
[340393782,1729173867943,3221.99,0.00027,60]
[340393783,1729173867991,500.0,0.00027,60]
[340393784,1729173868096,500.0,0.00027,60]
[340393785,1729173868247,3221.99,0.00027,60]
[340393786,1729173868288,500.0,0.00027,60]
[340393787,1729173868493,500.0,0.00027,60]
[340393788,1729173868565,3222.1545355,0.00027,60]
[340393789,1729173868738,597.09,0.00027,60]
[340393790,1729173868807,500.0,0.00027,60]
[340393791,1729173868850,500.0,0.00027,60]
[340393792,1729173869121,500.0,0.00027,60]
[340393793,1729173869165,500.0,0.00027,60]
[340393794,1729173869212,597.09,0.00027,60]
[340393795,1729173869466,500.0,0.00027,60]
[340393796,1729173870096,597.09,0.00027,60]
[340393797,1729173870136,500.0,0.00027,60]
[340393798,1729173870176,500.0,0.00027,60]
[340393799,1729173870226,597.09,0.00027,60]
[340393800,1729173870267,500.0,0.00027,60]
[340393801,1729173870307,500.0,0.00027,60]
[340393802,1729173870350,597.09,0.00027,60]
[340393803,1729173870393,500.0,0.00027,60]
[340393804,1729173870442,500.0,0.00027,60]
[340393805,1729173870766,500.0,0.00027,60]
[340393806,1729173870894,500.0,0.00027,60]
[340393807,1729173871064,500.0,0.00027,60]
[340393808,1729173871111,597.09,0.00027,60]
[340393809,1729173871387,500.0,0.00027,60]
[340393810,1729173871430,597.09,0.00027,60]
[340393811,1729173871487,500.0,0.00027,60]
[340393812,1729173871704,500.0,0.00027,60]
[340393813,1729173871745,597.09,0.00027,60]
[340393814,1729173871946,500.0,0.00027,60]
[340393815,1729173872103,500.0,0.00027,60]
[340393816,1729173872149,597.09,0.00027,60]
[340393817,1729173872260,500.0,0.00027,60]
[340393818,1729173872306,500.0,0.00027,60]
[340393819,1729173872348,190.29103116,0.00027,60]
[340393820,1729173872390,597.09,0.00027,60]
[340393821,1729173872631,500.0,0.00027,60]
[340393822,1729173872673,500.0,0.00027,60]
[340393823,1729173872834,500.0,0.00027,60]
[340393824,1729173872944,500.0,0.00027,60]
[340393825,1729173873594,655.99,0.00027,60]
[340393826,1729173873700,597.09,0.00027,60]
[340393827,1729173873902,500.0,0.00027,60]
[340393828,1729173873951,500.0,0.00027,60]
[340393829,1729173874027,500.0,0.00027,60]
[340393830,1729173874071,597.09,0.00027,60]
[340393831,1729173874242,500.0,0.00027,60]
[340393832,1729173874284,500.0,0.00027,60]
[340393833,1729173874349,597.09,0.00027,60]
[340393834,1729173874469,655.99,0.00027,60]
[340393835,1729173874555,500.0,0.00027,60]
[340393836,1729173874597,511.51452675,0.00027,60]
[340393837,1729173874638,500.0,0.00027,60]
[340393838,1729173874679,597.09,0.00027,60]
[340393839,1729173874721,500.0,0.00027,60]
[340393840,1729173874861,500.0,0.00027,60]
[340393841,1729173874924,500.0,0.00027,60]
[340393842,1729173874968,222.59697353,0.00027,60]
[340393843,1729173875088,597.09,0.00027,60]
[340393844,1729173875400,597.09,0.00027,60]
[340393845,1729173875449,655.99,0.00027,60]
[340393846,1729173875933,500.0,0.00027,60]
[340393847,1729173876080,500.0,0.00027,60]
[340393848,1729173876125,597.09,0.00027,60]
[340393849,1729173876253,655.99,0.00027,60]
[340393850,1729173876299,500.0,0.00027,60]
[340393851,1729173876402,500.0,0.00027,60]
[340393852,1729173876707,500.0,0.00027,60]
[340393853,1729173876748,500.0,0.00027,60]
[340393854,1729173876787,558.75782424,0.00027,60]
[340393855,1729173877049,500.0,0.00027,60]
[340393856,1729173877091,500.0,0.00027,60]
[340393857,1729173877412,167.00774736,0.00027,60]
[340393858,1729173877579,500.0,0.00027,60]
[340393859,1729173877655,500.0,0.00027,60]
[340393860,1729173877749,597.09,0.00027,60]
[340393861,1729173878002,500.0,0.00027,60]
[340393862,1729173878050,500.0,0.00027,60]
[340393863,1729173878331,500.0,0.00027,60]
[340393864,1729173878377,500.0,0.00027,60]
[340393865,1729173878423,655.99,0.00027,60]
[340393866,1729173878657,518.39649549,0.00027,60]
[340393867,1729173878700,500.0,0.00027,60]
[340393868,1729173878998,500.0,0.00027,60]
[340393869,1729173879084,655.99,0.00027,60]
[340393870,1729173879143,500.0,0.00027,60]
[340393871,1729173879197,500.0,0.00027,60]
[340393872,1729173879256,500.0,0.00027,60]
[340393873,1729173879394,597.09,0.00027,60]
[340393874,1729173879437,655.99,0.00027,60]
[340393875,1729173879481,500.0,0.00027,60]
[340393876,1729173879548,500.0,0.00027,60]
[340393877,1729173879590,500.0,0.00027,60]
[340393878,1729173879712,655.99,0.00027,60]
[340393879,1729173879756,597.09,0.00027,60]
[340393880,1729173879802,542.22531132,0.00027,60]
[340393881,1729173879944,500.0,0.00027,60]
[340393882,1729173880032,655.99,0.00027,60]
[340393883,1729173880074,597.09,0.00027,60]
[340393884,1729173880477,500.0,0.00027,60]
[340393885,1729173880530,597.09,0.00027,60]
[340393886,1729173880574,533.43616532,0.00027,60]
[340393887,1729173880623,500.0,0.00027,60]
[340393888,1729173880687,655.99,0.00027,60]
[340393889,1729173880900,500.0,0.00027,60]
[340393890,1729173881112,500.0,0.00027,60]
[340393891,1729173881223,500.0,0.00027,60]
[340393892,1729173881462,500.0,0.00027,60]
[340393893,1729173881539,500.0,0.00027,60]
[340393894,1729173881596,655.99,0.00027,60]
[340393895,1729173881727,500.0,0.00027,60]
[340393896,1729173881785,500.0,0.00027,60]
[340393897,1729173881896,655.99,0.00027,60]
[340393898,1729173882104,500.0,0.00027,60]
[340393899,1729173882154,282.17125178,0.00027,60]
[340393900,1729173882201,597.09,0.00027,60]
[340393901,1729173882243,655.99,0.00027,60]
[340393902,1729173882415,500.0,0.00027,60]
[340393903,1729173882505,655.99,0.00027,60]
[340393904,1729173882552,597.2105949,0.00027,60]
[340393905,1729173882714,500.0,0.00027,60]
[340393906,1729173883013,500.0,0.00027,60]
[340393907,1729173883063,655.99,0.00027,60]
[340393908,1729173883107,500.0,0.00027,60]
[340393909,1729173883187,1434.68,0.00027,60]
[340393910,1729173883251,500.0,0.00027,60]
[340393911,1729173883315,500.0,0.00027,60]
[340393912,1729173883430,500.0,0.00027,60]
[340393913,1729173883487,1434.68,0.00027,60]
[340393914,1729173883585,500.0,0.00027,60]
[340393915,1729173883628,500.0,0.00027,60]
[340393916,1729173883776,655.99,0.00027,60]
[340393917,1729173883842,500.0,0.00027,60]
[340393918,1729173883945,1434.68,0.00027,60]
[340393919,1729173883989,500.0,0.00027,60]
[340393920,1729173884037,500.0,0.00027,60]
[340393921,1729173884113,500.0,0.00027,60]
[340393922,1729173884156,1434.68,0.00027,60]
[340393923,1729173884217,500.0,0.00027,60]
[340393924,1729173884434,1434.68,0.00027,60]
[340393925,1729173884477,2324.47,0.00027,60]
[340393926,1729173884519,500.0,0.00027,60]
[340393927,1729173884568,500.0,0.00027,60]
[340393928,1729173884756,1434.68,0.00027,60]
[340393929,1729173884801,500.0,0.00027,60]
[340393930,1729173884848,563.69039727,0.00027,60]
[340393931,1729173885064,1434.68,0.00027,60]
[340393932,1729173885316,500.0,0.00027,60]
[340393933,1729173885365,500.0,0.00027,60]
[340393934,1729173885537,655.99,0.00027,60]
[340393935,1729173885631,500.0,0.00027,60]
[340393936,1729173885712,500.0,0.00027,60]
[340393937,1729173885905,655.99,0.00027,60]
[340393938,1729173885946,500.0,0.00027,60]
[340393939,1729173886054,500.0,0.00027,60]
[340393940,1729173886105,2324.47,0.00027,60]
[340393941,1729173886237,655.99,0.00027,60]
[340393942,1729173886280,500.0,0.00027,60]
[340393943,1729173886371,500.0,0.00027,60]
[340393944,1729173886563,655.99,0.00027,60]
[340393945,1729173886608,392.04540372,0.00027,60]
[340393946,1729173886714,500.0,0.00027,60]
[340393947,1729173886837,500.0,0.00027,60]
[340393948,1729173886988,517.92943281,0.00027,60]
[340393949,1729173887087,1434.68,0.00027,60]
[340393950,1729173887231,500.0,0.00027,60]
[340393951,1729173887272,500.0,0.00027,60]
[340393952,1729173887560,500.0,0.00027,60]
[340393953,1729173887602,500.0,0.00027,60]
[340393954,1729173887889,500.0,0.00027,60]
[340393955,1729173887936,500.0,0.00027,60]
[340393956,1729173888108,655.99,0.00027,60]
[340393957,1729173888150,2324.47,0.00027,60]
[340393958,1729173888204,500.0,0.00027,60]
[340393959,1729173888246,500.0,0.00027,60]
[340393960,1729173888488,2324.47,0.00027,60]
[340393961,1729173888540,500.0,0.00027,60]
[340393962,1729173888585,500.0,0.00027,60]
[340393963,1729173888648,1434.68,0.00027,60]
[340393964,1729173888795,2324.47,0.00027,60]
[340393965,1729173888856,221.62635572,0.00027,60]
[340393966,1729173888901,500.0,0.00027,60]
[340393967,1729173889010,1434.68,0.00027,60]
[340393968,1729173889102,2324.47,0.00027,60]
[340393969,1729173889202,500.0,0.00027,60]
[340393970,1729173889427,2324.47,0.00027,60]
[340393971,1729173889521,500.0,0.00027,60]
[340393972,1729173889563,504.34819079,0.00027,60]
[340393973,1729173889605,500.0,0.00027,60]
[340393974,1729173889725,655.99,0.00027,60]
[340393975,1729173889771,2324.47,0.00027,60]
[340393976,1729173889813,500.0,0.00027,60]
[340393977,1729173889900,500.0,0.00027,60]
[340393978,1729173890140,500.0,0.00027,60]
[340393979,1729173890201,260.97293271,0.00027,60]
[340393980,1729173890244,500.0,0.00027,60]
[340393981,1729173891035,1434.68,0.00027,60]
[340393982,1729173891115,2324.47,0.00027,60]
[340393983,1729173891157,655.99,0.00027,60]
[340393984,1729173891201,1434.68,0.00027,60]
[340393985,1729173891434,500.0,0.00027,60]
[340393986,1729173891477,2324.47,0.00027,60]
[340393987,1729173891520,1434.68,0.00027,60]
[340393988,1729173891768,500.0,0.00027,60]
[340393989,1729173891815,2324.47,0.00027,60]
[340393990,1729173891872,1434.68,0.00027,60]
[340393991,1729173891969,500.0,0.00027,60]
[340393992,1729173892036,500.0,0.00027,60]
[340393993,1729173892077,500.0,0.00027,60]
[340393994,1729173892138,2324.47,0.00027,60]
[340393995,1729173892242,1434.68,0.00027,60]
[340393996,1729173892361,500.0,0.00027,60]
[340393997,1729173892408,527.33022226,0.00027,60]
[340393998,1729173892451,2324.47,0.00027,60]
[340393999,1729173892763,656.15952958,0.00027,60]
[340394000,1729173892807,1434.68,0.00027,60]
[340394001,1729173892848,136.7673888,0.00027,60]
[340394002,1729173949620,4902.79,0.00010346,2]
[340394004,1729173985064,269.18,0.00010282,2]
[340394005,1729174047427,-1000.0,0.00010551,2]
[340394006,1729174047449,-384.69,0.00010617,2]
[340394007,1729174047469,-718.27,0.00010678,2]
[340394008,1729174047491,-515.2894,0.0001068,2]
[340394009,1729174047512,-728.23232478,0.0001068,2]
[340394010,1729174059392,1997.81,0.00010384,2]
[340394011,1729174204789,250.0,0.00010383,2]
[340394013,1729174233458,-1041.9167,0.0001068,2]
[340394017,1729174233468,-150.0,0.00010779,2]
[340394021,1729174233477,-300.0,0.00010779,2]
[340394025,1729174233489,-17803.6266,0.0001078,2]
[340394029,1729174233498,-205108.4044,0.0001078,2]
[340394033,1729174233508,-100000.0,0.0001088,2]
[340394037,1729174233518,-124819.83990019,0.0001088,2]
[340394040,1729174233530,-38882.09999996,0.0001088,2]
[340394054,1729174239226,-28652.9082549,0.0001088,2]
[340394073,1729174242009,-1335.29980942,0.0001088,2]
[340394151,1729174246375,933.28399695,0.00025,120]
[340394152,1729174247552,-277.74998939,0.00010873,2]
[340394156,1729174298991,250.0,0.00010371,2]
[340394158,1729174313700,346.22,8.387e-05,2]
[340394161,1729174392193,550.0,0.0001,2]
[340394162,1729174434276,1000.0,0.00010294,2]
[340394164,1729174529462,269.18,0.00010374,2]
[340394165,1729174602219,168.48,0.0001024,2]
[340394180,1729174772575,250.0,0.00010281,2]
[340394182,1729174794869,2132.54555705,0.0001,2]
[340394183,1729174833654,250.0,0.00010243,2]
[340394187,1729174895854,328.9,8.328e-05,2]
[340394188,1729174960601,200.0,0.00010171,2]
[340394189,1729175005598,786.2,0.00010281,2]
[340394191,1729175097297,307.44,0.00022137,30]
[340394201,1729175126741,816.46281644,0.00023,120]
[340394202,1729175229138,-267.0,0.00010525,2]
[340394203,1729175229159,-353.83633962,0.00010578,2]
[340394204,1729175278739,1061.61,0.00010401,2]
[340394205,1729175289462,300.0,0.00021,30]
[340394209,1729175303840,150.0,0.00010378,2]
[340394210,1729175323636,467.35105188,0.000145,120]
[340394215,1729175340719,250.0,0.00010243,2]
[340394233,1729175432626,-5.49366038,0.00010578,2]
[340394235,1729175432636,-328.9,0.00010592,2]
[340394237,1729175432645,-262.55,0.0001068,2]
[340394239,1729175432655,-1755.70786066,0.0001068,2]
[340394242,1729175432666,-1647.4472241,0.0001068,2]
[340394245,1729175432677,-3128.3562448,0.0001068,2]
[340394252,1729175433640,-870.73311284,0.0001068,2]
[340394258,1729175439561,-9717.8247576,0.0001068,2]
[340394260,1729175439570,-16099.84244254,0.00010835,2]
[340394262,1729175439579,-500.0,0.00010873,2]
[340394264,1729175439588,-150.0,0.00010879,2]
[340394281,1729175439811,-27111.87223089,0.0001088,2]
[340394282,1729175440498,-11823.23636779,0.0001088,2]
[340394286,1729175440510,-2414.47484465,0.0001088,2]
[340394288,1729175440520,-11725.94670452,0.0001088,2]
[340394290,1729175440530,-477.20756348,0.00010885,2]
[340394292,1729175440541,-823.83471014,0.00010886,2]
[340394294,1729175440552,-1341.1464432,0.00010886,2]
[340394296,1729175440564,-1718.65167653,0.00010886,2]
[340394312,1729175441436,-70273.82287013,0.00010886,2]
[340394314,1729175441446,-1429.9447,0.00010886,2]
[340394316,1729175441456,-371.5028,0.00010886,2]
[340394318,1729175441466,-1423.5003,0.00010886,2]
[340394320,1729175441476,-2901.4902,0.00010886,2]
[340394322,1729175441486,-71402.6105,0.00010886,2]
[340394324,1729175441496,-262.01,0.00010894,2]
[340394326,1729175441505,-150.99,0.00010894,2]
[340394327,1729175441515,-7500.0,0.00010894,2]
[340394328,1729175441524,-159.98264768,0.00010894,2]
[340394329,1729175441534,-1970.96970042,0.000109,2]
[340394330,1729175441545,-183.12602453,0.000109,2]
[340394331,1729175441554,-499.99,0.000109,2]
[340394332,1729175441564,-150.99,0.000109,2]
[340394333,1729175441574,-449.53,0.000109,2]
[340394334,1729175441583,-456.35531827,0.000109,2]
[340394335,1729175441593,-1998.0,0.000109,2]
[340394336,1729175441602,-171.00963363,0.000109,2]
[340394337,1729175441612,-2210.86969958,0.000109,2]
[340394338,1729175441622,-256.692427,0.000109,2]
[340394339,1729175441632,-500.0,0.00010911,2]
[340394340,1729175441641,-500.0,0.00010912,2]
[340394341,1729175441650,-500.0,0.00010912,2]
[340394342,1729175441659,-500.0,0.00010912,2]
[340394343,1729175441668,-163.57,0.00010959,2]
[340394344,1729175441677,-156.86,0.00010959,2]
[340394345,1729175441690,-284.93,0.00010959,2]
[340394346,1729175441699,-158.66,0.00010959,2]
[340394347,1729175441709,-313.55,0.00010959,2]
[340394348,1729175441721,-174.54,0.00010959,2]
[340394349,1729175441731,-250.0,0.00010959,2]
[340394350,1729175441740,-167.97,0.00010959,2]
[340394351,1729175441750,-839.87,0.00010959,2]
[340394352,1729175441760,-150.0,0.00010959,2]
[340394353,1729175441769,-499.72249718,0.00010973,2]
[340394354,1729175441779,-500.0,0.00010973,2]
[340394355,1729175441788,-500.0,0.00010973,2]
[340394356,1729175441798,-193.57303123,0.00010985,2]
[340394357,1729175441808,-186944.0,0.00010986,2]
[340394358,1729175441818,-500.0,0.00010993,2]
[340394359,1729175441828,-170.75592721,0.00010993,2]
[340394360,1729175441838,-500.0,0.00010993,2]
[340394361,1729175441848,-150.0,0.00010993,2]
[340394362,1729175441858,-72710.94540647,0.00010994,3]
[340394363,1729175441868,-746.0,0.00010994,2]
[340394364,1729175441878,-623699.56702581,0.00010994,2]
[340394365,1729175441888,-290.368,0.00010994,2]
[340394366,1729175441898,-1696.69570498,0.00010999,2]
[340394367,1729175441908,-3059539.59835667,0.00011,2]
[340394368,1729175441948,-1787.70249,0.00011,2]
[340394369,1729175441960,-5666.17967787,0.00011,2]
[340394370,1729175441971,-27089.17785513,0.00011,2]
[340394371,1729175441982,-1518.24201,0.00011,2]
[340394372,1729175441993,-1363.68834929,0.00011,2]
[340394373,1729175442005,-2023.404,0.00011,2]
[340394394,1729175444342,-5019.52919998,0.00011,2]
[340394395,1729175444355,-2415.10106563,0.00011,2]
[340394396,1729175444367,-4295.88013318,0.00011,2]
[340394397,1729175444378,-20047.56835159,0.00011,2]
[340394398,1729175444389,-1598.23540917,0.00011,2]
[340394404,1729175447084,-510.72156263,0.00010973,2]
[340394407,1729175447096,-109.39492231,0.00010973,2]
[340394409,1729175447105,-292.79294769,0.00011,2]
[340394411,1729175447116,-3614.94302904,0.00011,2]
[340394417,1729175479802,296.01,8.219e-05,2]
[340394420,1729175565402,250.0,9.998e-05,2]
[340394427,1729176056544,281.2,8.478e-05,2]
[340394430,1729176212280,550.0,0.0001,2]
[340394432,1729176329392,1000.0,0.00010293,2]
[340394433,1729176367035,250.0,0.00010203,2]
[340394435,1729176437140,-250.0,0.00010473,2]
[340394436,1729176437162,-281.2,0.00010742,2]
[340394437,1729176437186,-150.0,0.00010785,2]
[340394438,1729176437211,-300.0,0.00010785,2]
[340394439,1729176437232,-4916.68092987,0.00010786,2]
[340394445,1729176575142,253.08,8.482e-05,2]
[340394450,1729176633088,-1000.0,0.000107,2]
[340394452,1729176633098,-253.08,0.00010746,2]